fUSD/lending_fUSD_20260221
["ID","MTS","AMOUNT","RATE_DAILY","PERIOD"]
[406229194,1771637075739,-1797.85479162,0.0001243,2]
[406229195,1771637075770,-170.0,0.00014055,2]
[406229196,1771637075799,-200.0,0.00014626,2]
[406229197,1771637075826,-300.0,0.00014626,2]
[406229198,1771637075853,-300.0,0.00014626,2]
[406229199,1771637075878,-500.0,0.00014627,2]
[406229200,1771637075904,-200.0,0.00014627,2]
[406229201,1771637076020,-471.06747996,0.00015592,2]
[406229202,1771637078701,-3169.54252004,0.00015592,2]
[406229203,1771637078729,-150.0,0.00015633,2]
[406229204,1771637078761,-420.0,0.00016013,2]
[406229205,1771637078791,-407.0,0.00016013,2]
[406229206,1771637078819,-528.70495992,0.00016092,2]
[406229207,1771637078891,-649.51504008,0.00016092,2]
[406229208,1771637081737,-500.0,0.00016183,2]
[406229209,1771637081770,-299.99,0.00016183,4]
[406229210,1771637081819,-8400.03,0.00016183,2]
[406229215,1771637216480,-3826.30372545,9.95e-05,2]
[406229216,1771637216506,-249.36,0.00014338,2]
[406229217,1771637216549,-1848.6825491,0.00015988,2]
[406229218,1771637216669,-532.1274509,0.00015988,2]
[406229219,1771637216697,-1599.96,0.00016183,2]
[406229220,1771637216742,-5735.8350982,0.000162,5]
[406229221,1771637216782,-10000.01,0.000162,5]
[406229222,1771637216873,-10000.01,0.000162,5]
[406229223,1771637219330,-1681.35193302,0.000162,5]
[406229224,1771637219356,-6637.30613396,0.000162,5]
[406229225,1771637222339,-189.0,0.00016235,2]
[406229226,1771637222368,-1200.0,0.00016235,2]
[406229227,1771637222401,-300.0,0.00016235,2]
[406229228,1771637258618,-260.62186474,0.000101,2]
[406229229,1771637258646,-1178.22,0.00016236,2]
[406229230,1771637258692,-7122.32627052,0.00016236,2]
[406229231,1771637258907,-2877.66372948,0.00016236,2]
[406229232,1771637258940,-4244.68254104,0.00016245,2]
[406229233,1771637259049,-548.77431978,0.00016245,2]
[406229234,1771637259077,-3545.56,0.00016283,2]
[406229235,1771637259105,-200.0,0.0001635,2]
[406229236,1771637259170,-1411.34136044,0.00016352,2]
[406229237,1771637259202,-4849.84863956,0.00016352,2]
[406229238,1771637259237,-300.31272088,0.0001638,2]
[406229239,1771637259287,-877.90727912,0.0001638,2]
[406229240,1771637259314,-434.16,0.00016483,2]
[406229241,1771637259342,-2822.07544176,0.00016483,2]
[406229242,1771637259388,-1731.72455824,0.00016483,2]
[406229243,1771637259422,-2257.53,0.00016483,2]
[406229244,1771637259449,-300.0,0.000165,6]
[406229245,1771637259477,-150.99,0.00016524,2]
[406229246,1771637259504,-1178.22,0.00016524,2]
[406229247,1771637259594,-2226.53,0.00016577,2]
[406229248,1771637259609,-8571.92847569,0.00016577,2]
[406229249,1771637259618,-1428.08152431,0.00016587,2]
[406229250,1771637259646,-10000.01,0.00016587,2]
[406229251,1771637259719,-2132.86847569,0.00016587,2]
[406229252,1771637259747,-700.0,0.000166,6]
[406229253,1771637259775,-1178.22,0.00016668,2]
[406229254,1771637260047,-977.83304862,0.000167,6]
[406229255,1771637260116,-22.16695138,0.000167,6]
[406229256,1771637261517,-10000.01,0.00016795,2]
[406229257,1771637261638,-780.57844149,0.00016795,2]
[406229258,1771637261668,-1400.0,0.000168,6]
[406229259,1771637261695,-1178.22,0.00016813,2]
[406229260,1771637261723,-151.0,0.00016847,2]
[406229261,1771637261752,-151.0,0.00016847,2]
[406229262,1771637261781,-151.0,0.00016847,2]
[406229263,1771637261808,-200.0,0.00016847,2]
[406229264,1771637261837,-151.0,0.00016847,2]
[406229265,1771637261865,-151.0,0.00016847,2]
[406229266,1771637261893,-151.0,0.00016847,2]
[406229267,1771637261920,-151.0,0.00016847,2]
[406229268,1771637261947,-151.0,0.00016847,2]
[406229269,1771637261975,-151.0,0.00016847,2]
[406229270,1771637262002,-13.41311702,0.00016847,2]
[406229271,1771637262085,-137.58688298,0.00016847,2]
[406229272,1771637262113,-151.0,0.00016847,2]
[406229273,1771637262141,-151.0,0.00016847,2]
[406229274,1771637262168,-151.0,0.00016847,2]
[406229275,1771637262195,-151.0,0.00016847,2]
[406229276,1771637262223,-151.0,0.00016847,2]
[406229277,1771637262250,-151.0,0.00016847,2]
[406229278,1771637262277,-151.0,0.00016847,2]
[406229279,1771637262305,-151.0,0.00016847,2]
[406229280,1771637262333,-151.0,0.00016847,2]
[406229281,1771637262364,-151.0,0.00016847,2]
[406229282,1771637262392,-500.0,0.00016847,2]
[406229283,1771637262782,-198.0,0.00016847,2]
[406229284,1771637262800,-5704.83623404,0.00016847,2]
[406229285,1771637264546,-10000.01,0.00016847,2]
[406229286,1771637264646,-10000.01,0.00016847,2]
[406229287,1771637264791,-10000.01,0.00016847,2]
[406229288,1771637264915,-3933.94452042,0.00016847,2]
[406229289,1771637264956,-2132.12095916,0.00016847,2]
[406229290,1771637265033,-10000.01,0.00016847,2]
[406229291,1771637265146,-789.16971472,0.00016847,2]
[406229292,1771637265172,-232.00267772,0.00016847,2]
[406229293,1771637265200,-175.25027049,0.00016847,2]
[406229294,1771637303096,-151.0,0.00016854,2]
[406229295,1771637303123,-300.0,0.00016856,2]
[406229296,1771637303150,-922.7428727,0.00016857,2]
[406229297,1771637303177,-399.02864734,0.00016857,2]
[406229298,1771637303207,-1800.0,0.000169,6]
[406229299,1771637303235,-1178.22,0.00016957,2]
[406229300,1771637303262,-151.0,0.00016961,2]
[406229301,1771637303371,-196.02695992,0.00016963,2]
[406229302,1771637308754,-103.97304008,0.00016963,2]
[406229303,1771637308788,-9792.06391984,0.00016964,2]
[406229308,1771637349133,-745.12539861,0.00016474,2]
[406229314,1771637431654,-300.0,0.00016473,2]
[406229315,1771637431663,-119.0,0.00016473,2]
[406229316,1771637431751,-592.36206145,0.00016473,2]
[406229317,1771637431763,-488.63793855,0.00016473,2]
[406229318,1771637431772,-288.0,0.00016473,2]
[406229319,1771637431781,-731.36364249,0.00016474,2]
[406229320,1771637431792,-675.352,0.00016474,2]
[406229321,1771637431851,-12755.0489589,0.00016474,2]
[406229322,1771637431860,-166.66,0.00016952,2]
[406229323,1771637431869,-535.63914168,0.00016963,2]
[406229324,1771637431879,-14248.37138526,0.00017,2]
[406229325,1771637431888,-3545.56,0.00017097,2]
[406229326,1771637431898,-250.0,0.00017099,2]
[406229327,1771637431907,-250.0,0.00017099,2]
[406229328,1771637431916,-500.0,0.00017099,2]
[406229329,1771637431925,-500.0,0.00017099,2]
[406229330,1771637431933,-693.3919763,0.00017099,2]
[406229331,1771637431944,-500.0,0.00017099,2]
[406229332,1771637431953,-500.0,0.00017099,2]
[406229333,1771637431962,-500.0,0.00017099,2]
[406229334,1771637431971,-500.0,0.00017099,2]
[406229335,1771637431981,-500.0,0.00017099,2]
[406229336,1771637431990,-500.0,0.00017099,2]
[406229337,1771637431999,-500.0,0.00017099,2]
[406229338,1771637432008,-500.0,0.00017099,2]
[406229339,1771637432017,-500.0,0.00017099,2]
[406229340,1771637432026,-1178.22,0.00017101,2]
[406229341,1771637432035,-719.04747942,0.00017154,2]
[406229342,1771637432044,-3857.96663154,0.00017202,2]
[406229343,1771637432053,-745.65223616,0.00017209,2]
[406229345,1771637432293,-1178.22,0.00017245,2]
[406229346,1771637432303,-773.2413689,0.00017264,2]
[406229347,1771637432312,-300.0,0.000173,6]
[406229348,1771637432321,-700.0,0.000173,6]
[406229349,1771637432330,-801.85129955,0.00017319,2]
[406229350,1771637432339,-831.51979763,0.00017374,2]
[406229351,1771637432347,-1178.22,0.00017389,2]
[406229352,1771637432356,-200.0,0.00017395,2]
[406229353,1771637432365,-700.0,0.000174,6]
[406229354,1771637432374,-1500.0,0.000174,6]
[406229355,1771637432383,-862.28603014,0.00017429,2]
[406229356,1771637432392,-10334.91321222,0.00017432,2]
[406229357,1771637435640,-894.19061326,0.00017484,2]
[406229358,1771637435669,-1100.0,0.000175,6]
[406229359,1771637435698,-2300.0,0.000175,6]
[406229360,1771637435726,-233.40877348,0.00017533,2]
[406229361,1771637435799,-944.81122652,0.00017533,2]
[406229363,1771637437826,-395.85,0.00016864,2]
[406229364,1771637437837,-3499604.15,0.00016864,2]
[406229365,1771637437847,-927.27566595,0.00017539,2]
[406229366,1771637437857,-39836.8107544,0.00017549,2]
[406229367,1771637437867,-200.0,0.00017587,2]
[406229368,1771637437876,-200.0,0.00017587,2]
[406229369,1771637437885,-222.21045992,0.00017587,2]
[406229370,1771637437895,-195.0,0.00017587,2]
[406229371,1771637437904,-384.75,0.00017587,2]
[406229372,1771637437913,-500.0,0.00017587,2]
[406229373,1771637437922,-961.58486559,0.00017594,2]
[406229374,1771637437932,-1500.0,0.000176,6]
[406229375,1771637437942,-3100.0,0.000176,6]
[406229376,1771637437956,-212.25582562,0.0001764,2]
[406229377,1771637437965,-298.45189828,0.00017648,2]
[406229378,1771637437974,-997.16350561,0.00017649,2]
[406229379,1771637437983,-39836.8107544,0.00017666,2]
[406229380,1771637437993,-1178.22,0.00017677,2]
[406229381,1771637438005,-168.69841937,0.00017699,2]
[406229382,1771637438015,-500.0,0.00017699,2]
[406229383,1771637438025,-500.0,0.00017699,2]
[406229384,1771637438036,-564.49602587,0.00017699,2]
[406229385,1771637438045,-500.0,0.00017699,2]
[406229386,1771637438055,-500.0,0.00017699,2]
[406229387,1771637438064,-500.0,0.00017699,2]
[406229388,1771637438074,-500.0,0.00017699,2]
[406229389,1771637438083,-500.0,0.00017699,2]
[406229390,1771637438092,-253.17230469,0.00017699,2]
[406229391,1771637438102,-500.0,0.00017699,2]
[406229392,1771637438111,-500.0,0.00017699,2]
[406229393,1771637438120,-582.98085502,0.00017699,2]
[406229396,1771637438129,-500.0,0.00017699,2]
[406229398,1771637438139,-500.0,0.00017699,2]
[406229400,1771637438148,-500.0,0.00017699,2]
[406229401,1771637438157,-500.0,0.00017699,2]
[406229404,1771637438167,-500.0,0.00017699,2]
[406229405,1771637438176,-500.0,0.00017699,2]
[406229407,1771637438185,-500.0,0.00017699,2]
[406229410,1771637438197,-217.83161651,0.00017699,2]
[406229411,1771637438207,-500.0,0.00017699,2]
[406229412,1771637438217,-500.0,0.00017699,2]
[406229413,1771637438226,-500.0,0.00017699,2]
[406229414,1771637438236,-500.0,0.00017699,2]
[406229415,1771637438245,-500.0,0.00017699,2]
[406229416,1771637438255,-500.0,0.00017699,2]
[406229417,1771637438264,-500.0,0.00017699,2]
[406229418,1771637438274,-500.0,0.00017699,2]
[406229419,1771637438283,-500.0,0.00017699,2]
[406229420,1771637438292,-300.0,0.00017699,2]
[406229421,1771637438302,-500.0,0.00017699,2]
[406229422,1771637438311,-500.0,0.00017699,2]
[406229423,1771637438320,-500.0,0.00017699,2]
[406229424,1771637438329,-450.0,0.00017699,2]
[406229425,1771637438339,-500.0,0.00017699,2]
[406229426,1771637438348,-500.0,0.00017699,2]
[406229427,1771637438358,-500.0,0.00017699,2]
[406229428,1771637438367,-500.0,0.00017699,2]
[406229429,1771637438377,-500.0,0.00017699,2]
[406229430,1771637438386,-500.0,0.00017699,2]
[406229431,1771637438398,-500.0,0.00017699,2]
[406229432,1771637438409,-550.0,0.00017699,2]
[406229433,1771637438418,-500.0,0.00017699,2]
[406229434,1771637438428,-500.0,0.00017699,2]
[406229435,1771637438437,-500.0,0.00017699,2]
[406229436,1771637438446,-500.0,0.00017699,2]
[406229437,1771637438456,-500.0,0.00017699,2]
[406229438,1771637438466,-500.0,0.00017699,2]
[406229439,1771637438475,-500.0,0.00017699,2]
[406229440,1771637438485,-500.0,0.00017699,2]
[406229441,1771637438494,-500.0,0.00017699,2]
[406229442,1771637438503,-500.0,0.00017699,2]
[406229443,1771637438513,-500.0,0.00017699,2]
[406229444,1771637438522,-500.0,0.00017699,2]
[406229445,1771637438531,-500.0,0.00017699,2]
[406229446,1771637438542,-500.0,0.00017699,2]
[406229447,1771637438551,-500.0,0.00017699,2]
[406229448,1771637438560,-359.67582898,0.00017699,2]
[406229449,1771637438570,-3623.2923,0.000177,2]
[406229450,1771637438579,-6715.4735,0.000177,2]
[406229451,1771637438589,-13100.3304,0.000177,2]
[406229452,1771637438599,-300.0,0.000177,6]
[406229453,1771637438609,-1900.0,0.000177,6]
[406229454,1771637438618,-3800.0,0.000177,6]
[406229455,1771637438628,-173.56356531,0.00017708,2]
[406229456,1771637438637,-72736.0,0.00017781,2]
[406229457,1771637438647,-39836.8107544,0.00017783,2]
[406229458,1771637438656,-151.0,0.00017793,2]
[406229459,1771637438666,-500.0,0.00017799,2]
[406229460,1771637438676,-300.0,0.000178,6]
[406229461,1771637438686,-300.0,0.000178,6]
[406229462,1771637438695,-700.0,0.000178,6]
[406229463,1771637438705,-487.0,0.000178,2]
[406229464,1771637438714,-549.2,0.000178,2]
[406229465,1771637438724,-500.0,0.00017808,2]
[406229466,1771637438733,-500.0,0.00017808,2]
[406229467,1771637438743,-500.0,0.00017808,2]
[406229468,1771637438753,-500.0,0.00017808,2]
[406229469,1771637438762,-500.0,0.00017808,2]
[406229470,1771637438772,-500.0,0.00017808,2]
[406229471,1771637438781,-500.0,0.00017808,2]
[406229472,1771637438800,-634.05094352,0.00017808,2]
[406229473,1771637438814,-500.0,0.00017808,2]
[406229474,1771637438824,-500.0,0.00017808,2]
[406229475,1771637438833,-500.0,0.00017808,2]
[406229476,1771637438843,-500.0,0.00017808,2]
[406229477,1771637438852,-282.07969064,0.00017808,2]
[406229478,1771637438862,-500.0,0.00017808,2]
[406229479,1771637438871,-500.0,0.00017808,2]
[406229480,1771637438881,-282.07969064,0.00017808,2]
[406229481,1771637438891,-500.0,0.00017808,2]
[406229482,1771637438901,-500.0,0.00017808,2]
[406229483,1771637438910,-233.19034274,0.00017808,2]
[406229484,1771637438920,-500.0,0.00017808,2]
[406229485,1771637438930,-167.15049742,0.00017808,2]
[406229486,1771637438939,-167.15049742,0.00017808,2]
[406229487,1771637438949,-500.0,0.00017808,2]
[406229488,1771637438962,-500.0,0.00017808,2]
[406229489,1771637438972,-233.19034274,0.00017808,2]
[406229490,1771637438982,-500.0,0.00017808,2]
[406229491,1771637438991,-566.03984532,0.00017808,2]
[406229492,1771637439002,-500.0,0.00017808,2]
[406229493,1771637439011,-500.0,0.00017808,2]
[406229494,1771637439020,-1178.22,0.00017821,2]
[406229495,1771637439032,-1004.51596763,0.0001786,2]
[406229496,1771637439042,-500.0,0.00017861,2]
[406229497,1771637439052,-500.0,0.000179,2]
[406229498,1771637439062,-211.09415042,0.000179,2]
[406229499,1771637439071,-39836.8107544,0.000179,2]
[406229500,1771637439080,-300.0,0.000179,6]
[406229501,1771637439090,-300.0,0.000179,6]
[406229502,1771637439099,-266.01909822,0.000179,2]
[406229503,1771637439109,-700.0,0.000179,6]
[406229504,1771637439118,-1351.49294735,0.000179,2]
[406229505,1771637439127,-2162.7880892,0.000179,2]
[406229506,1771637439137,-4399.89623556,0.000179,2]
[406229507,1771637439147,-174.91969327,0.000179,2]
[406229508,1771637439156,-3545.56,0.00017911,2]
[406229509,1771637439166,-200.0,0.00017943,2]
[406229510,1771637439175,-1178.22,0.00017965,2]
[406229511,1771637439185,-581.69471125,0.0001799,2]
[406229512,1771637439194,-436.3598045,0.0001799,2]
[406229513,1771637439203,-436.3598045,0.0001799,2]
[406229514,1771637439213,-436.3598045,0.0001799,2]
[406229515,1771637439222,-151.0,0.00017999,2]
[406229516,1771637439231,-384.14649696,0.00017999,2]
[406229517,1771637439241,-1659098.61056724,0.00018,2]
[406229518,1771637439251,-249200.63175825,0.00018,2]
[406229519,1771637439260,-1000.0,0.00018,2]
[406229520,1771637439269,-1000.0,0.00018,2]
[406229521,1771637439279,-1000.0,0.00018,2]
[406229522,1771637439288,-1000.0,0.00018,2]
[406229523,1771637439297,-1000.0,0.00018,2]
[406229524,1771637439307,-1000.0,0.00018,2]
[406229525,1771637439316,-1000.0,0.00018,2]
[406229526,1771637439326,-1000.0,0.00018,2]
[406229527,1771637439335,-1000.0,0.00018,2]
[406229528,1771637439344,-1000.0,0.00018,2]
[406229529,1771637439357,-1000.0,0.00018,2]
[406229530,1771637439366,-1000.0,0.00018,2]
[406229531,1771637439375,-1000.0,0.00018,2]
[406229532,1771637439385,-1000.0,0.00018,2]
[406229533,1771637439394,-1000.0,0.00018,2]
[406229534,1771637439404,-1000.0,0.00018,2]
[406229535,1771637439413,-1000.0,0.00018,2]
[406229536,1771637439422,-1000.0,0.00018,2]
[406229537,1771637439432,-1000.0,0.00018,2]
[406229538,1771637439441,-1000.0,0.00018,2]
[406229539,1771637439450,-1000.0,0.00018,2]
[406229540,1771637439460,-230.43503376,0.00018,2]
[406229541,1771637439469,-46722.10972167,0.00018,2]
[406229542,1771637439983,-187.06790563,0.00017683,2]
[406229543,1771637439993,-538.0733514,0.00018,2]
[406229544,1771637440281,-276835.0369232,0.00018,2]
[406229545,1771637440402,-1677974.08027175,0.00018,2]
[406229546,1771637440413,-778.32504117,0.00018,2]
[406229547,1771637440424,-300.18824987,0.00018,2]
[406229557,1771637444199,-154.00740006,0.0001764,2]
[406229558,1771637444209,-500.0,0.00017699,2]
[406229559,1771637444220,-191.71001576,0.00017699,2]
[406229563,1771637445877,-308.28998424,0.00017699,2]
[406229564,1771637445887,-31895.19259326,0.000178,2]
[406229565,1771637445897,-282.07969064,0.00017808,2]
[406229566,1771637445906,-187.06790562,0.000179,2]
[406229567,1771637445916,-311317.2597253,0.00018,2]
[406229568,1771637445930,-411.11969778,0.00018,2]
[406229569,1771637445941,-1893.12,0.00018,2]
[406229570,1771637445958,-3800.30205689,0.00018,2]
[406229571,1771637445971,-133643.89464406,0.00018,2]
[406229572,1771637445984,-754.46530473,0.00018,2]
[406229574,1771637447986,270.96049664,0.00016856,2]
[406229575,1771637449425,253.80379392,0.00016856,2]
[406229576,1771637449460,168.14468398,0.00016856,2]
[406229577,1771637465623,-4857.79701741,0.00017005,2]
[406229578,1771637465833,-284.41596518,0.00017005,2]
[406229579,1771637465860,-300.0,0.0001781,2]
[406229580,1771637465934,-8422.68506028,0.00017811,2]
[406229581,1771637471485,-800.0,0.00017808,2]
[406229582,1771637471516,-8400.01,0.00017811,2]
[406229583,1771637471578,-10000.01,0.00017811,2]
[406229585,1771637492802,-154.00740006,0.00017699,2]
[406229586,1771637492829,-4619.50766698,0.00017811,2]
[406229587,1771637492862,-452.97986592,0.00017811,2]
[406229588,1771637498612,-200.0,0.000174,6]
[406229589,1771637498641,-400.0,0.000175,6]
[406229590,1771637498679,-1041.315,0.00017811,2]
[406229591,1771637498711,-153.85897386,0.00017811,2]
[406229592,1771637498739,-272.63375344,0.0001782,2]
[406229593,1771637498829,-5864.3945454,0.00017822,2]
[406229594,1771637580235,-561.60754,0.00016,2]
[406229595,1771637580262,-506.0,0.00016,2]
[406229596,1771637580290,-500.0,0.00016754,2]
[406229597,1771637580347,-6864.79492,0.00016864,2]
[406229598,1771637580416,-10000.01,0.00016864,2]
[406229599,1771637580572,-10000.01,0.00016864,2]
[406229600,1771637586071,-300.0,0.00016863,2]
[406229601,1771637586099,-550.0,0.00016863,2]
[406229602,1771637586128,-300.0,0.00016863,2]
[406229603,1771637586183,-7700.01,0.00016864,2]
[406229604,1771637586206,-10000.01,0.00016864,2]
[406229605,1771637586463,-10000.01,0.00016864,2]
[406229606,1771637684764,-150.0,0.00016349,2]
[406229607,1771637684792,-200.0,0.000165,6]
[406229608,1771637684818,-150.0,0.00016507,2]
[406229609,1771637684844,-200.0,0.0001655,2]
[406229610,1771637684871,-400.0,0.000166,6]
[406229611,1771637684897,-222.65608218,0.00016676,2]
[406229612,1771637684924,-600.0,0.000167,6]
[406229613,1771637684952,-403.27414,0.00016778,2]
[406229614,1771637684979,-900.0,0.000168,6]
[406229615,1771637685006,-1602.86191803,0.000168,2]
[406229616,1771637685140,-342.42571958,0.000168,2]
[406229617,1771637690546,-796.15132182,0.000168,2]
[406229618,1771637690582,-8407.70735636,0.000168,2]
[406229619,1771637768992,-1375.27,0.00016367,2]
[406229620,1771637769021,-500.0,0.00016475,2]
[406229621,1771637769049,-195.0,0.00016583,2]
[406229622,1771637769077,-500.0,0.00016669,2]
[406229623,1771637769107,-200.0,0.00016798,3]
[406229624,1771637769135,-300.0,0.00016799,2]
[406229625,1771637769161,-400.17195717,0.000168,2]
[406229626,1771637769189,-308.2871286,0.000168,2]
[406229627,1771637769215,-169.04961687,0.000168,2]
[406229628,1771637769242,-904.45259472,0.00016848,2]
[406229629,1771637769375,-295.54740528,0.00016848,2]
[406229630,1771637775116,-10000.01,0.00016849,2]
[406229631,1771638003467,224.0,9e-05,2]
[406229632,1771638076701,-283.5,9e-05,2]
[406229633,1771638076729,-4372.34238543,9.9e-05,2]
[406229634,1771638076763,-688.32522914,9.9e-05,2]
[406229635,1771638076959,-300.0,0.00011316,2]
[406229636,1771638076987,-502.91,0.00013632,2]
[406229637,1771638077014,-197.49606111,0.00014571,2]
[406229638,1771638077041,-250.0,0.00015,2]
[406229639,1771638077068,-166.66,0.00015188,2]
[406229640,1771638077095,-166.66,0.00015508,2]
[406229641,1771638077121,-3240.0,0.00015813,2]
[406229642,1771638077147,-166.66,0.00015827,2]
[406229643,1771638077271,-19.23787778,0.00015877,2]
[406229644,1771638079373,-228.02212222,0.00015877,2]
[406229645,1771638079405,-166.66,0.00016147,2]
[406229646,1771638079438,-166.66,0.00016467,2]
[406229647,1771638079469,-300.0,0.00016686,2]
[406229648,1771638079498,-169.04961685,0.00016687,2]
[406229649,1771638079528,-225.2488246,0.00016687,2]
[406229650,1771638079626,-7488.72887266,0.00016687,2]
[406229651,1771638082432,-1233.03701246,0.00016687,2]
[406229652,1771638082459,-530.76754788,0.00016687,2]
[406229653,1771638082505,-6472.40087932,0.00016687,2]
[406229654,1771638456291,-200.0,0.00015737,2]
[406229655,1771638456330,-2466.07,0.0001575,2]
[406229656,1771638456379,-4667.87,0.00015839,2]
[406229657,1771638462183,-619.32,0.00015839,2]
[406229658,1771638462213,-1000.0,0.00015851,2]
[406229659,1771638462241,-300.0,0.00015882,2]
[406229660,1771638462268,-300.0,0.00015883,2]
[406229661,1771638462299,-300.0,0.00015883,2]
[406229662,1771638462328,-1200.0,0.00015883,2]
[406229663,1771638462357,-300.0,0.00015883,2]
[406229664,1771638462468,-1961.37,0.00015884,2]
[406229665,1771638468391,-10000.01,0.00015884,2]
[406229666,1771638595962,-3906.63,0.0001293,2]
[406229667,1771638595991,-586.75,0.0001573,2]
[406229668,1771638596025,-1013.25,0.0001573,2]
[406229669,1771638596165,-600.0,0.00015737,2]
[406229670,1771638596195,-195.0,0.00015743,2]
[406229671,1771638596222,-1500.0,0.00015756,2]
[406229672,1771638596252,-743.03964673,0.00015823,2]
[406229673,1771638596279,-1898.59,0.00015884,2]
[406229674,1771638596369,-126.75070654,0.00016042,2]
[406229675,1771638598796,-559.83929346,0.00016042,2]
[406229676,1771638598824,-309.71,0.00016438,30]
[406229677,1771638598855,-1400.0,0.000165,6]
[406229678,1771638598881,-200.0,0.000165,6]
[406229679,1771638598947,-5060.91141308,0.000165,2]
[406229680,1771638601836,-1200.0,0.00016499,2]
[406229681,1771638601868,-151.0,0.00016499,2]
[406229682,1771638601924,-7298.01,0.000165,2]
[406229687,1771638631778,-517.0,0.00016,2]
[406229688,1771638631788,-289.0,0.00016499,2]
[406229689,1771638631797,-1732.93798931,0.000165,2]
[406229690,1771638631883,-37167.686252,0.000165,2]
[406229691,1771638631892,-1506.05144308,0.000165,2]
[406229692,1771638631901,-187.7073538,0.000165,2]
[406229693,1771638631910,-353.84503192,0.000165,2]
[406229694,1771638631922,-169.04961685,0.000165,2]
[406229695,1771638631931,-54407.46254241,0.000165,2]
[406229696,1771638631943,-318.33745538,0.000165,2]
[406229697,1771638631954,-13100.3304,0.00016553,2]
[406229698,1771638631964,-1200.0,0.00016562,2]
[406229699,1771638631974,-300.0,0.00016563,2]
[406229700,1771638631983,-3520.17551082,0.00016563,2]
[406229701,1771638631991,-1768.10915527,0.00016564,2]
[406229702,1771638632001,-7066.04545311,0.00016564,2]
[406229703,1771638632011,-1539.36753152,0.00016577,2]
[406229704,1771638632021,-1539.36753152,0.00016577,2]
[406229705,1771638632031,-151.0,0.00016584,2]
[406229706,1771638632040,-300.0,0.00016586,2]
[406229707,1771638632049,-352.10495522,0.00016586,2]
[406229708,1771638632058,-666.0,0.00016586,2]
[406229709,1771638632067,-14007.21529457,0.00016587,2]
[406229710,1771638632079,-644.83,0.00016587,2]
[406229727,1771638637741,-14161.79383668,0.00016587,2]
[406229729,1771638637752,-1634.19576043,0.00016587,2]
[406229733,1771638637797,-3855.85335892,0.00016587,2]
[406229734,1771638637808,-527484.17119662,0.00016587,2]
[406229735,1771638637853,-2938211.94055278,0.00016587,2]
[406229736,1771638637863,-2900.0,0.000166,6]
[406229737,1771638637872,-400.0,0.000166,6]
[406229738,1771638637881,-7255.0,0.0001663,2]
[406229739,1771638637895,-17013.35658315,0.00016653,2]
[406229740,1771638637904,-300.0,0.00016655,2]
[406229741,1771638637913,-666.0,0.00016655,2]
[406229742,1771638637922,-51259.54565431,0.00016656,2]
[406229743,1771638637931,-54407.46254236,0.00016656,2]
[406229744,1771638637940,-550.0,0.0001666,2]
[406229745,1771638637949,-334.12,0.00016661,2]
[406229746,1771638637958,-150.99,0.00016661,2]
[406229747,1771638637968,-300.0,0.00016662,2]
[406229748,1771638637977,-670.00643429,0.00016662,2]
[406229749,1771638637986,-500.0,0.00016663,2]
[406229750,1771638637995,-500.0,0.00016663,2]
[406229751,1771638638006,-189.67234765,0.00016663,2]
[406229752,1771638638015,-451.36107511,0.00016663,2]
[406229753,1771638638025,-268.80406436,0.00016663,2]
[406229754,1771638638034,-500.0,0.00016663,2]
[406229755,1771638638043,-500.0,0.00016663,2]